fUST/lending_fUST_20251129
["ID","MTS","AMOUNT","RATE_DAILY","PERIOD"]
[395037011,1764359438791,-3679.93335291,0.00016331,2]
[395037013,1764359438801,-3679.93335291,0.00016331,2]
[395037015,1764359438810,-3679.93335291,0.00016331,2]
[395037017,1764359438820,-3679.93335291,0.00016331,2]
[395037019,1764359438830,-3679.93335291,0.00016331,2]
[395037021,1764359438839,-3679.93335291,0.00016331,2]
[395037023,1764359438848,-3679.93335291,0.00016331,2]
[395037025,1764359438857,-3679.93335291,0.00016331,2]
[395037027,1764359438867,-3679.93335291,0.00016331,2]
[395037029,1764359438876,-3679.93335291,0.00016331,2]
[395037030,1764359438885,-3679.93335291,0.00016331,2]
[395037031,1764359438895,-3679.93335291,0.00016331,2]
[395037032,1764359438906,-3679.93335291,0.00016331,2]
[395037033,1764359438915,-3679.93335291,0.00016331,2]
[395037034,1764359438925,-3679.93335291,0.00016331,2]
[395037035,1764359438935,-3679.93335291,0.00016331,2]
[395037036,1764359438944,-3679.93335291,0.00016331,2]
[395037037,1764359438953,-3679.93335291,0.00016331,2]
[395037038,1764359438963,-3679.93335291,0.00016331,2]
[395037039,1764359438973,-3679.93335291,0.00016331,2]
[395037040,1764359438982,-3679.93335291,0.00016331,2]
[395037041,1764359438992,-3679.93335291,0.00016331,2]
[395037042,1764359439001,-3679.93335291,0.00016331,2]
[395037043,1764359439010,-3679.93335291,0.00016331,2]
[395037044,1764359439019,-3679.93335291,0.00016331,2]
[395037045,1764359439029,-3679.93335291,0.00016331,2]
[395037046,1764359439038,-3679.93335291,0.00016331,2]
[395037047,1764359439047,-3679.93335291,0.00016331,2]
[395037048,1764359439056,-3679.93335291,0.00016331,2]
[395037049,1764359439066,-3679.93335291,0.00016331,2]
[395037050,1764359439076,-500.0,0.00016331,2]
[395037051,1764359439085,-500.0,0.00016331,2]
[395037052,1764359439095,-500.0,0.00016331,2]
[395037053,1764359439106,-500.0,0.00016331,2]
[395037054,1764359439115,-500.0,0.00016331,2]
[395037055,1764359439125,-200.0,0.00016331,2]
[395037056,1764359439134,-3643.13401938,0.00016331,2]
[395037057,1764359439144,-3643.13401938,0.00016331,2]
[395037058,1764359439155,-3643.13401938,0.00016331,2]
[395037059,1764359439165,-3643.13401938,0.00016331,2]
[395037060,1764359439174,-3643.13401938,0.00016331,2]
[395037061,1764359439183,-3643.13401938,0.00016331,2]
[395037062,1764359439192,-3643.13401938,0.00016331,2]
[395037063,1764359439202,-3643.13401938,0.00016331,2]
[395037064,1764359439211,-3643.13401938,0.00016331,2]
[395037065,1764359439221,-3643.13401938,0.00016331,2]
[395037066,1764359439230,-3643.13401938,0.00016331,2]
[395037067,1764359439239,-3643.13401938,0.00016331,2]
[395037068,1764359439249,-3643.13401938,0.00016331,2]
[395037069,1764359439259,-3643.13401938,0.00016331,2]
[395037070,1764359439269,-3643.13401938,0.00016331,2]
[395037071,1764359439279,-3643.13401938,0.00016331,2]
[395037072,1764359439288,-3643.13401938,0.00016331,2]
[395037073,1764359439297,-3643.13401938,0.00016331,2]
[395037074,1764359439307,-3643.13401938,0.00016331,2]
[395037075,1764359439317,-3643.13401938,0.00016331,2]
[395037076,1764359439328,-3643.13401938,0.00016331,2]
[395037077,1764359439338,-3643.13401938,0.00016331,2]
[395037078,1764359439347,-3643.13401938,0.00016331,2]
[395037079,1764359439357,-3643.13401938,0.00016331,2]
[395037080,1764359439367,-3643.13401938,0.00016331,2]
[395037081,1764359439376,-3643.13401938,0.00016331,2]
[395037082,1764359439386,-3643.13401938,0.00016331,2]
[395037083,1764359439396,-3643.13401942,0.00016331,2]
[395037084,1764359439406,-3643.13401942,0.00016331,2]
[395037085,1764359439415,-3643.13401942,0.00016331,2]
[395037086,1764359439425,-1409.54905,0.00016333,2]
[395037087,1764359439435,-1409.54905,0.00016333,2]
[395037088,1764359439444,-1409.54905,0.00016333,2]
[395037089,1764359439454,-1409.54905,0.00016333,2]
[395037090,1764359439464,-1409.54905,0.00016333,2]
[395037091,1764359439473,-1409.54905,0.00016333,2]
[395037092,1764359439483,-1409.54905,0.00016333,2]
[395037093,1764359439492,-1409.54905,0.00016333,2]
[395037094,1764359439502,-1409.54905,0.00016333,2]
[395037095,1764359439511,-1409.54905,0.00016333,2]
[395037096,1764359439520,-1409.54905,0.00016333,2]
[395037097,1764359439530,-1409.54905,0.00016333,2]
[395037098,1764359439540,-151.0,0.00016334,2]
[395037099,1764359439550,-151.0,0.00016334,2]
[395037100,1764359439559,-500.0,0.00016335,2]
[395037101,1764359439569,-1409.54905,0.00016336,2]
[395037102,1764359439579,-1409.54905,0.00016336,2]
[395037103,1764359439590,-1409.54905,0.00016336,2]
[395037105,1764359439600,-1409.54905,0.00016336,2]
[395037106,1764359439609,-1385.66917457,0.00016338,2]
[395037108,1764359439619,-1409.54905,0.00016338,2]
[395037109,1764359439630,-1409.54905,0.00016338,2]
[395037111,1764359439639,-1409.54905,0.00016338,2]
[395037113,1764359439648,-1409.549044,0.00016338,2]
[395037114,1764359439657,-890000.0,0.00016338,2]
[395037116,1764359439666,-500.0,0.00016373,2]
[395037117,1764359439676,-335.57468144,0.00016373,2]
[395037118,1764359439686,-500.0,0.00016373,2]
[395037120,1764359439695,-500.0,0.00016373,2]
[395037122,1764359439704,-500.0,0.00016373,2]
[395037124,1764359439713,-500.0,0.00016373,2]
[395037126,1764359439722,-500.0,0.00016373,2]
[395037128,1764359439732,-500.0,0.00016373,2]
[395037130,1764359439740,-500.0,0.00016373,2]
[395037131,1764359439749,-500.0,0.00016373,2]
[395037133,1764359439758,-500.0,0.00016373,2]
[395037135,1764359439768,-519.55158055,0.00016373,2]
[395037137,1764359439777,-500.0,0.00016373,2]
[395037139,1764359439786,-500.0,0.00016373,2]
[395037141,1764359439795,-500.0,0.00016373,2]
[395037143,1764359439804,-471.38,0.00016427,3]
[395037145,1764359439814,-1603.4485391,0.00016438,2]
[395037147,1764359439823,-500.0,0.00016438,2]
[395037149,1764359439832,-500.0,0.00016438,2]
[395037151,1764359439841,-500.0,0.00016438,2]
[395037153,1764359439850,-506.38441465,0.00016438,2]
[395037155,1764359439859,-500.0,0.00016438,2]
[395037157,1764359439868,-500.0,0.00016438,2]
[395037159,1764359439878,-500.0,0.00016438,2]
[395037161,1764359439888,-500.0,0.00016438,2]
[395037163,1764359439897,-500.0,0.00016438,2]
[395037166,1764359439907,-500.0,0.00016438,2]
[395037167,1764359439916,-500.0,0.00016438,2]
[395037169,1764359439925,-770.35,0.00016438,2]
[395037171,1764359439934,-718.18,0.00016438,2]
[395037173,1764359439943,-500.0,0.00016438,2]
[395037175,1764359439953,-500.0,0.00016438,2]
[395037177,1764359439961,-641.61292222,0.00016438,2]
[395037179,1764359439971,-500.0,0.00016438,2]
[395037181,1764359439981,-500.0,0.00016438,2]
[395037184,1764359439991,-500.0,0.00016438,2]
[395037185,1764359440000,-758.22,0.00016438,2]
[395037188,1764359440009,-500.0,0.00016438,2]
[395037189,1764359440019,-500.0,0.00016438,2]
[395037191,1764359440028,-500.0,0.00016438,2]
[395037193,1764359440038,-187.84472321,0.00016438,2]
[395037195,1764359440047,-500.0,0.00016438,2]
[395037197,1764359440057,-500.0,0.00016438,2]
[395037199,1764359440066,-500.0,0.00016438,2]
[395037201,1764359440075,-547.88,0.00016438,2]
[395037203,1764359440084,-673.48,0.00016438,2]
[395037205,1764359440094,-500.0,0.00016438,2]
[395037207,1764359440103,-500.0,0.00016438,2]
[395037209,1764359440113,-500.0,0.00016438,2]
[395037212,1764359440123,-579.88458797,0.00016438,2]
[395037214,1764359440133,-500.0,0.00016438,2]
[395037216,1764359440142,-502.73850431,0.00016438,2]
[395037218,1764359440151,-228.89766914,0.00016438,2]
[395037220,1764359440161,-500.0,0.00016438,2]
[395037222,1764359440170,-564.25,0.00016438,2]
[395037223,1764359440179,-500.0,0.00016438,2]
[395037226,1764359440189,-500.0,0.00016438,2]
[395037228,1764359440198,-425.00172605,0.00016438,2]
[395037229,1764359440208,-500.0,0.00016438,2]
[395037232,1764359440217,-500.0,0.00016438,2]
[395037234,1764359440227,-864.74,0.00016438,2]
[395037236,1764359440236,-862.73,0.00016438,2]
[395037238,1764359440246,-500.0,0.00016438,2]
[395037239,1764359440255,-500.0,0.00016438,2]
[395037241,1764359440264,-500.0,0.00016438,2]
[395037243,1764359440274,-500.0,0.00016438,2]
[395037246,1764359440283,-500.0,0.00016438,2]
[395037247,1764359440293,-873.33,0.00016438,2]
[395037249,1764359440301,-505.30734982,0.00016438,2]
[395037251,1764359440311,-596.15,0.00016438,2]
[395037253,1764359440321,-633.13,0.00016438,2]
[395037256,1764359440331,-500.0,0.00016438,2]
[395037257,1764359440340,-500.0,0.00016438,2]
[395037259,1764359440349,-508.47,0.00016438,2]
[395037261,1764359440359,-755.19,0.00016438,2]
[395037263,1764359440369,-554.8,0.00016438,2]
[395037265,1764359440378,-500.0,0.00016438,2]
[395037267,1764359440387,-500.0,0.00016438,2]
[395037269,1764359440397,-1044.72,0.00016438,2]
[395037271,1764359440407,-500.0,0.00016438,2]
[395037273,1764359440416,-500.0,0.00016438,2]
[395037276,1764359440425,-441.20159894,0.00016438,2]
[395037277,1764359440434,-500.0,0.00016438,2]
[395037279,1764359440444,-500.0,0.00016438,2]
[395037281,1764359440453,-500.0,0.00016438,2]
[395037284,1764359440463,-500.0,0.00016438,2]
[395037285,1764359440472,-500.0,0.00016438,2]
[395037288,1764359440482,-500.0,0.00016438,2]
[395037290,1764359440491,-500.0,0.00016438,2]
[395037292,1764359440500,-500.0,0.00016438,2]
[395037294,1764359440508,-500.0,0.00016438,2]
[395037296,1764359440518,-500.0,0.00016438,2]
[395037298,1764359440527,-500.0,0.00016438,2]
[395037300,1764359440536,-500.0,0.00016438,2]
[395037302,1764359440545,-500.0,0.00016438,2]
[395037304,1764359440554,-500.0,0.00016438,2]
[395037306,1764359440563,-500.0,0.00016438,2]
[395037308,1764359440572,-500.0,0.00016438,2]
[395037310,1764359440585,-500.0,0.00016438,2]
[395037312,1764359440594,-500.0,0.00016438,2]
[395037314,1764359440603,-500.0,0.00016438,2]
[395037316,1764359440613,-500.0,0.00016438,2]
[395037318,1764359440622,-500.0,0.00016438,2]
[395037320,1764359440631,-796.82,0.00016438,2]
[395037321,1764359440640,-500.0,0.00016438,2]
[395037323,1764359440649,-500.0,0.00016438,2]
[395037325,1764359440659,-500.0,0.00016438,2]
[395037327,1764359440669,-316.66504307,0.00016438,2]
[395037328,1764359440680,-500.0,0.00016438,2]
[395037329,1764359440689,-500.0,0.00016438,2]
[395037330,1764359440699,-500.0,0.00016438,2]
[395037331,1764359440708,-500.0,0.00016438,2]
[395037332,1764359440718,-500.0,0.00016438,2]
[395037333,1764359440727,-603.85,0.00016438,2]
[395037334,1764359440736,-500.0,0.00016438,2]
[395037335,1764359440745,-500.0,0.00016438,2]
[395037336,1764359440754,-996.55,0.00016438,2]
[395037337,1764359440764,-500.0,0.00016438,2]
[395037338,1764359440773,-500.0,0.00016438,2]
[395037339,1764359440782,-500.0,0.00016438,2]
[395037340,1764359440791,-500.0,0.00016438,2]
[395037341,1764359440800,-1048.66,0.00016438,2]
[395037342,1764359440809,-585.78,0.00016438,2]
[395037343,1764359440819,-500.0,0.00016438,2]
[395037344,1764359440827,-505.72362788,0.00016438,2]
[395037345,1764359440836,-500.0,0.00016438,2]
[395037346,1764359440845,-500.0,0.00016438,2]
[395037347,1764359440854,-519.69,0.00016438,2]
[395037348,1764359440863,-702.61,0.00016438,2]
[395037349,1764359440872,-500.0,0.00016438,2]
[395037350,1764359440881,-500.0,0.00016438,2]
[395037351,1764359440890,-1257.57,0.00016438,2]
[395037352,1764359440899,-500.0,0.00016438,2]
[395037353,1764359440908,-500.0,0.00016438,2]
[395037354,1764359440918,-500.0,0.00016438,2]
[395037355,1764359440928,-500.0,0.00016438,2]
[395037356,1764359440937,-941.44,0.00016438,2]
[395037357,1764359440946,-500.0,0.00016438,2]
[395037358,1764359440956,-500.10866484,0.00016438,2]
[395037359,1764359440964,-500.0,0.00016438,2]
[395037360,1764359440974,-470.25726556,0.00016438,2]
[395037361,1764359440983,-376.19745629,0.00016438,2]
[395037362,1764359440993,-875.41,0.00016438,2]
[395037363,1764359441002,-1136.08,0.00016438,2]
[395037364,1764359441012,-864.44,0.00016438,2]
[395037365,1764359441021,-505.32536117,0.00016438,2]
[395037366,1764359441031,-687.59,0.00016438,2]
[395037367,1764359441040,-500.0,0.00016438,2]
[395037368,1764359441050,-500.0,0.00016438,2]
[395037369,1764359441059,-563.65171366,0.00016438,2]
[395037370,1764359441068,-1229.42,0.00016438,2]
[395037371,1764359441078,-500.0,0.00016438,2]
[395037372,1764359441087,-500.0,0.00016438,2]
[395037373,1764359441096,-500.0,0.00016438,2]
[395037374,1764359441105,-500.0,0.00016438,2]
[395037375,1764359441115,-500.0,0.00016438,2]
[395037376,1764359441124,-965.37,0.00016438,2]
[395037377,1764359441133,-500.0,0.00016438,2]
[395037378,1764359441142,-500.0,0.00016438,2]
[395037379,1764359441154,-685.57,0.00016438,2]
[395037380,1764359441163,-500.0,0.00016438,2]
[395037381,1764359441172,-500.0,0.00016438,2]
[395037382,1764359441181,-500.0,0.00016438,2]
[395037383,1764359441190,-500.0,0.00016438,2]
[395037384,1764359441200,-1035.74,0.00016438,2]
[395037385,1764359441209,-649.06,0.00016438,2]
[395037386,1764359441218,-500.0,0.00016438,2]
[395037387,1764359441228,-500.0,0.00016438,2]
[395037388,1764359441237,-750.26,0.00016438,2]
[395037389,1764359441246,-500.0,0.00016438,2]
[395037390,1764359441256,-500.0,0.00016438,2]
[395037391,1764359441266,-1932.83,0.00016438,2]
[395037392,1764359441275,-500.0,0.00016438,2]
[395037393,1764359441284,-545.96,0.00016438,2]
[395037394,1764359441294,-569.94,0.00016438,2]
[395037395,1764359441303,-500.0,0.00016438,2]
[395037396,1764359441312,-500.0,0.00016438,2]
[395037397,1764359441321,-1017.36,0.00016438,2]
[395037398,1764359441331,-500.0,0.00016438,2]
[395037399,1764359441340,-500.0,0.00016438,2]
[395037400,1764359441349,-500.0,0.00016438,2]
[395037401,1764359441359,-720.76,0.00016438,2]
[395037402,1764359441369,-957.93,0.00016438,2]
[395037403,1764359441378,-500.0,0.00016438,2]
[395037404,1764359441387,-500.0,0.00016438,2]
[395037405,1764359441396,-500.0,0.00016438,2]
[395037406,1764359441406,-1113.34,0.00016438,2]
[395037407,1764359441415,-331.88851665,0.00016438,2]
[395037408,1764359441424,-615.91,0.00016438,2]
[395037409,1764359441433,-1508.98,0.00016438,2]
[395037410,1764359441449,-500.0,0.00016438,2]
[395037411,1764359441459,-516.78818077,0.00016438,2]
[395037412,1764359441469,-500.0,0.00016438,2]
[395037413,1764359441478,-477.29588568,0.00016438,2]
[395037414,1764359441487,-945.77,0.00016438,2]
[395037415,1764359441496,-500.0,0.00016438,2]
[395037416,1764359441507,-500.0,0.00016438,2]
[395037417,1764359441523,-500.0,0.00016438,2]
[395037418,1764359441534,-500.0,0.00016438,2]
[395037419,1764359441544,-500.0,0.00016438,2]
[395037420,1764359441554,-500.0,0.00016438,2]
[395037421,1764359441563,-500.0,0.00016438,2]
[395037422,1764359441578,-500.0,0.00016438,2]
[395037423,1764359441591,-500.0,0.00016438,2]
[395037424,1764359441601,-509.91224246,0.00016438,2]
[395037425,1764359441610,-500.0,0.00016438,2]
[395037426,1764359441619,-546.98,0.00016438,2]
[395037427,1764359441629,-500.0,0.00016438,2]
[395037428,1764359441638,-516.41,0.00016438,2]
[395037429,1764359441647,-500.0,0.00016438,2]
[395037430,1764359441656,-500.0,0.00016438,2]
[395037431,1764359441666,-500.0,0.00016438,2]
[395037432,1764359441675,-500.0,0.00016438,2]
[395037433,1764359441684,-500.0,0.00016438,2]
[395037434,1764359441694,-544.15,0.00016438,2]
[395037435,1764359441703,-500.0,0.00016438,2]
[395037436,1764359441713,-543.83,0.00016438,2]
[395037437,1764359441722,-728.7,0.00016438,2]
[395037438,1764359441731,-500.0,0.00016438,2]
[395037439,1764359441740,-500.0,0.00016438,2]
[395037440,1764359441749,-500.0,0.00016438,2]
[395037441,1764359441758,-500.0,0.00016438,2]
[395037442,1764359441768,-2342.25,0.00016438,2]
[395037443,1764359441777,-500.0,0.00016438,2]
[395037444,1764359441786,-811.39,0.00016438,2]
[395037445,1764359441795,-500.0,0.00016438,2]
[395037446,1764359441805,-803.72,0.00016438,2]
[395037447,1764359441814,-500.0,0.00016438,2]
[395037448,1764359441823,-581.36,0.00016438,2]
[395037450,1764359441832,-500.0,0.00016438,2]
[395037452,1764359441842,-1863.3,0.00016438,2]
[395037454,1764359441851,-605.35358429,0.00016438,2]
[395037456,1764359441861,-504.21574561,0.00016438,2]
[395037458,1764359441870,-500.0,0.00016438,2]
[395037460,1764359441879,-500.0,0.00016438,2]
[395037462,1764359441889,-500.0,0.00016438,2]
[395037464,1764359441899,-461.78659488,0.00016438,2]
[395037466,1764359441908,-812.03,0.00016438,2]
[395037468,1764359441917,-2342.45,0.00016438,2]
[395037470,1764359441926,-500.0,0.00016438,2]
[395037472,1764359441935,-500.0,0.00016438,2]
[395037474,1764359441943,-500.0,0.00016438,2]
[395037476,1764359441953,-1325.03,0.00016438,2]
[395037478,1764359441962,-512.89,0.00016438,2]
[395037480,1764359441971,-500.0,0.00016438,2]
[395037482,1764359441980,-500.0,0.00016438,2]
[395037484,1764359441989,-500.0,0.00016438,2]
[395037486,1764359441998,-614.42,0.00016438,2]
[395037488,1764359442007,-500.0,0.00016438,2]
[395037490,1764359442016,-554.96,0.00016438,2]
[395037492,1764359442026,-500.0,0.00016438,2]
[395037493,1764359442036,-500.0,0.00016438,2]
[395037496,1764359442046,-680.07,0.00016438,2]
[395037497,1764359442055,-748.14,0.00016438,2]
[395037499,1764359442064,-500.0,0.00016438,2]
[395037501,1764359442073,-500.0,0.00016438,2]
[395037503,1764359442082,-338.47881162,0.00016438,2]
[395037505,1764359442092,-500.0,0.00016438,2]
[395037508,1764359442103,-760.64,0.00016438,2]
[395037509,1764359442112,-500.0,0.00016438,2]
[395037511,1764359442121,-500.0,0.00016438,2]
[395037512,1764359442130,-500.0,0.00016438,2]
[395037514,1764359442139,-500.0,0.00016438,2]
[395037516,1764359442150,-520.79237885,0.00016438,2]
[395037518,1764359442159,-500.0,0.00016438,2]
[395037520,1764359442168,-500.0,0.00016438,2]
[395037522,1764359442178,-500.0,0.00016438,2]
[395037524,1764359442187,-500.0,0.00016438,2]
[395037526,1764359442196,-500.0,0.00016438,2]
[395037528,1764359442206,-500.0,0.00016438,2]
[395037530,1764359442215,-607.9,0.00016438,2]
[395037532,1764359442224,-500.0,0.00016438,2]
[395037534,1764359442234,-540.19769117,0.00016438,2]
[395037535,1764359442243,-209.8634554,0.00016438,2]
[395037538,1764359442253,-500.0,0.00016438,2]
[395037539,1764359442263,-568.56,0.00016438,2]
[395037541,1764359442272,-500.0,0.00016438,2]
[395037543,1764359442282,-522.91035199,0.00016438,2]
[395037545,1764359442291,-793.65,0.00016438,2]
[395037547,1764359442300,-500.0,0.00016438,2]
[395037549,1764359442309,-500.0,0.00016438,2]
[395037551,1764359442318,-691.87,0.00016438,2]
[395037553,1764359442328,-501.19680907,0.00016438,2]
[395037555,1764359442337,-286.91585564,0.00016438,2]
[395037557,1764359442347,-500.0,0.00016438,2]
[395037559,1764359442357,-791.3,0.00016438,2]
[395037561,1764359442367,-500.0,0.00016438,2]
[395037563,1764359442376,-634.23343278,0.00016438,2]
[395037591,1764359442553,-2748.17,0.00016438,2]
[395037593,1764359442591,-500.0,0.00016438,2]
[395037595,1764359442600,-636.43091675,0.00016438,2]
[395037597,1764359442609,-500.0,0.00016438,2]
[395037600,1764359442619,-500.33820009,0.00016438,2]
[395037603,1764359442630,-500.0,0.00016438,2]
[395037605,1764359442640,-500.0,0.00016438,2]
[395037607,1764359442649,-500.0,0.00016438,2]
[395037609,1764359442660,-573.3,0.00016438,2]
[395037611,1764359442670,-500.0,0.00016438,2]
[395037613,1764359442679,-500.0,0.00016438,2]
[395037615,1764359442688,-500.0,0.00016438,2]
[395037617,1764359442698,-500.0,0.00016438,2]
[395037619,1764359442708,-153.53577715,0.00016438,2]
[395037621,1764359442717,-500.0,0.00016438,2]
[395037623,1764359442726,-501.04754705,0.00016438,2]
[395037625,1764359442735,-500.0,0.00016438,2]
[395037627,1764359442744,-500.0,0.00016438,2]
[395037629,1764359442754,-724.87,0.00016438,2]
[395037632,1764359442764,-500.0,0.00016438,2]
[395037633,1764359442773,-500.0,0.00016438,2]
[395037635,1764359442783,-500.0,0.00016438,2]
[395037638,1764359442792,-500.0,0.00016438,2]
[395037640,1764359442802,-402.01263489,0.00016438,2]
[395037641,1764359442812,-500.0,0.00016438,2]
[395037642,1764359442822,-757.92,0.00016438,2]
[395037644,1764359442831,-501.04269156,0.00016438,2]
[395037645,1764359442840,-500.0,0.00016438,2]
[395037647,1764359442850,-571.25,0.00016438,2]
[395037649,1764359442861,-500.0,0.00016438,2]
[395037651,1764359442870,-500.0,0.00016438,2]
[395037652,1764359442879,-920.22,0.00016438,2]
[395037653,1764359442888,-469.72485868,0.00016438,2]
[395037654,1764359442897,-500.0,0.00016438,2]
[395037655,1764359442907,-3481.53,0.00016438,2]
[395037656,1764359442916,-273.35026099,0.00016438,2]
[395037657,1764359442926,-501.55660433,0.00016438,2]
[395037658,1764359442935,-762.13,0.00016438,2]
[395037659,1764359442944,-536.49,0.00016438,2]
[395037660,1764359442954,-500.0,0.00016438,2]
[395037662,1764359442964,-500.0,0.00016438,2]
[395037663,1764359442974,-500.0,0.00016438,2]
[395037664,1764359442983,-500.0,0.00016438,2]
[395037665,1764359442993,-541.31,0.00016438,2]
[395037666,1764359443002,-500.0,0.00016438,2]
[395037667,1764359443011,-595.57939813,0.00016438,2]
[395037668,1764359443020,-510.65314756,0.00016438,2]
[395037669,1764359443030,-889.08,0.00016438,2]
[395037670,1764359443039,-1017.42,0.00016438,2]
[395037671,1764359443048,-294.9014912,0.00016438,2]
[395037672,1764359443057,-500.0,0.00016438,2]
[395037673,1764359443067,-500.0,0.00016438,2]
[395037674,1764359443077,-1361.88,0.00016438,2]
[395037675,1764359443086,-500.0,0.00016438,2]
[395037676,1764359443096,-500.0,0.00016438,2]
[395037677,1764359443105,-507.97069128,0.00016438,2]
[395037678,1764359443115,-1623.51,0.00016438,2]
[395037679,1764359443124,-553.04,0.00016438,2]
[395037680,1764359443133,-964.24,0.00016438,2]
[395037681,1764359443143,-500.0,0.00016438,2]
[395037682,1764359443152,-1516.06,0.00016438,2]
[395037683,1764359443162,-1218.11,0.00016438,2]
[395037684,1764359443171,-500.96320801,0.00016438,2]
[395037685,1764359443181,-665.86,0.00016438,2]
[395037686,1764359443190,-501.93422736,0.00016438,2]
[395037687,1764359443200,-500.0,0.00016438,2]
[395037688,1764359443209,-671.13,0.00016438,2]
[395037689,1764359443219,-260.23410237,0.00016438,2]
[395037690,1764359443229,-500.0,0.00016438,2]
[395037691,1764359443239,-217.03124963,0.00016438,2]
[395037692,1764359443248,-500.0,0.00016438,2]
[395037693,1764359443258,-500.0,0.00016438,2]
[395037694,1764359443267,-500.0,0.00016438,2]
[395037695,1764359443277,-503.40630707,0.00016438,2]
[395037696,1764359443287,-3039.62,0.00016438,2]
[395037697,1764359443296,-941.14,0.00016438,2]
[395037698,1764359443306,-500.0,0.00016438,2]
[395037699,1764359443316,-500.0,0.00016438,2]
[395037700,1764359443325,-500.0,0.00016438,2]
[395037701,1764359443335,-457.54880246,0.00016438,2]
[395037702,1764359443344,-500.0,0.00016438,2]
[395037703,1764359443353,-500.0,0.00016438,2]
[395037704,1764359443363,-500.0,0.00016438,2]
[395037705,1764359443371,-500.0,0.00016438,2]
[395037706,1764359443381,-500.0,0.00016438,2]
[395037707,1764359443391,-1661.15,0.00016438,2]
[395037708,1764359443400,-3624.64,0.00016438,2]
[395037709,1764359443410,-890.17,0.00016438,2]
[395037710,1764359443420,-500.0,0.00016438,2]
[395037711,1764359443429,-691.07,0.00016438,2]
[395037712,1764359443438,-171.15122474,0.00016438,2]
[395037713,1764359443448,-2973.61,0.00016438,2]
[395037714,1764359443458,-500.0,0.00016438,2]
[395037715,1764359443468,-985.06,0.00016438,2]
[395037716,1764359443478,-500.0,0.00016438,2]
[395037717,1764359443488,-500.0,0.00016438,2]
[395037718,1764359443498,-1452.33,0.00016438,2]
[395037719,1764359443507,-520.9721884,0.00016438,2]
[395037720,1764359443517,-500.0,0.00016438,2]
[395037721,1764359443528,-1052.35,0.00016438,2]
[395037722,1764359443538,-928.74,0.00016438,2]
[395037723,1764359443548,-1476.31,0.00016438,2]
[395037724,1764359443557,-3471.78,0.00016438,2]
[395037725,1764359443567,-500.0,0.00016438,2]
[395037726,1764359443576,-500.0,0.00016438,2]
[395037727,1764359443591,-500.0,0.00016438,2]
[395037728,1764359443600,-500.0,0.00016438,2]
[395037729,1764359443610,-500.0,0.00016438,2]
[395037730,1764359443620,-500.00430347,0.00016438,2]
[395037731,1764359443630,-500.0,0.00016438,2]
[395037732,1764359443640,-1879.38,0.00016438,2]
[395037733,1764359443649,-2877.82,0.00016438,2]
[395037734,1764359443658,-560.25356746,0.00016438,2]
[395037735,1764359443668,-571.56,0.00016438,2]
[395037736,1764359443678,-2936.16,0.00016438,2]
[395037737,1764359443688,-724.71,0.00016438,2]
[395037738,1764359443698,-500.0,0.00016438,2]
[395037739,1764359443707,-500.0,0.00016438,2]
[395037740,1764359443717,-992.34,0.00016438,2]
[395037741,1764359443726,-18130.48,0.00016438,2]
[395037742,1764359443736,-500.0,0.00016438,2]